Workbook

Sheet Instrumentpanel
N1: =Budgetnamn&" INTERAKTIV BUDGET" -> FAMILJEN JOHANSSON 2012 INTERAKTIV BUDGET
A3: =diagramdata!C38 -> 4,000 kr
D5: inkomst
A7: =diagramdata!C39 -> 5,933 kr
D9: utgifter
A11: =diagramdata!D40&diagramdata!C40& " kr" -> -1933 kr
D13: kassaflöde

Sheet Budget
C1: jan | D1: feb | E1: mar | F1: apr | G1: maj | H1: jun | I1: jul | J1: aug | K1: sep | L1: okt | M1: nov | N1: dec | O1: år | P1: medel
B5: Startsaldo | C5: 1000
B6: Totalinkomst | C6: =SUM(tblInkomst[jan]) -> 4222 | D6: =SUM(tblInkomst[feb]) -> 9033 | E6: =SUM(tblInkomst[mar]) -> 4000 | F6: =SUM(tblInkomst[apr]) -> 4045 | G6: =SUM(tblInkomst[maj]) -> 9000 | H6: =SUM(tblInkomst[jun]) -> 1525 | I6: =SUM(tblInkomst[jul]) -> 1500 | J6: =SUM(tblInkomst[aug]) -> 6500 | K6: =SUM(tblInkomst[sep]) -> 4000 | L6: =SUM(tblInkomst[okt]) -> 4000 | M6: =SUM(tblInkomst[nov]) -> 9000 | N6: =SUM(tblInkomst[dec]) -> 4000 | O6: =SUM(tblInkomst[år]) -> 60825 | P6: =O6/12 -> 5069
B7: Totala utgifter | C7: =SUM(tblUtgiftskategori_01[jan],tblUtgiftskategori_02[jan],tblUtgiftskategori_03[jan],tblUtgiftskategori_04[jan],tblUtgiftskategori_05[jan],tblUtgiftskategori_06[jan],tblUtgiftskategori_07[jan],tblUtgiftskategori_08[jan],tblUtgiftskategori_09[jan],tblUtgiftskategori_10[jan],tblUtgiftskategori_11[jan],tblUtgiftskategori_12[jan],tblUtgiftskategori_13[jan],tblUtgiftskategori_14[jan],tblUtgiftskategori_15[jan]) -> 7936 | D7: =SUM(tblUtgiftskategori_01[feb],tblUtgiftskategori_02[feb],tblUtgiftskategori_03[feb],tblUtgiftskategori_04[feb],tblUtgiftskategori_05[feb],tblUtgiftskategori_06[feb],tblUtgiftskategori_07[feb],tblUtgiftskategori_08[feb],tblUtgiftskategori_09[feb],tblUtgiftskategori_10[feb],tblUtgiftskategori_11[feb],tblUtgiftskategori_12[feb],tblUtgiftskategori_13[feb],tblUtgiftskategori_14[feb],tblUtgiftskategori_15[feb]) -> 5243 | E7: =SUM(tblUtgiftskategori_01[mar],tblUtgiftskategori_02[mar],tblUtgiftskategori_03[mar],tblUtgiftskategori_04[mar],tblUtgiftskategori_05[mar],tblUtgiftskategori_06[mar],tblUtgiftskategori_07[mar],tblUtgiftskategori_08[mar],tblUtgiftskategori_09[mar],tblUtgiftskategori_10[mar],tblUtgiftskategori_11[mar],tblUtgiftskategori_12[mar],tblUtgiftskategori_13[mar],tblUtgiftskategori_14[mar],tblUtgiftskategori_15[mar]) -> 5933 | F7: =SUM(tblUtgiftskategori_01[apr],tblUtgiftskategori_02[apr],tblUtgiftskategori_03[apr],tblUtgiftskategori_04[apr],tblUtgiftskategori_05[apr],tblUtgiftskategori_06[apr],tblUtgiftskategori_07[apr],tblUtgiftskategori_08[apr],tblUtgiftskategori_09[apr],tblUtgiftskategori_10[apr],tblUtgiftskategori_11[apr],tblUtgiftskategori_12[apr],tblUtgiftskategori_13[apr],tblUtgiftskategori_14[apr],tblUtgiftskategori_15[apr]) -> 5858 | G7: =SUM(tblUtgiftskategori_01[maj],tblUtgiftskategori_02[maj],tblUtgiftskategori_03[maj],tblUtgiftskategori_04[maj],tblUtgiftskategori_05[maj],tblUtgiftskategori_06[maj],tblUtgiftskategori_07[maj],tblUtgiftskategori_08[maj],tblUtgiftskategori_09[maj],tblUtgiftskategori_10[maj],tblUtgiftskategori_11[maj],tblUtgiftskategori_12[maj],tblUtgiftskategori_13[maj],tblUtgiftskategori_14[maj],tblUtgiftskategori_15[maj]) -> 5468 | H7: =SUM(tblUtgiftskategori_01[jun],tblUtgiftskategori_02[jun],tblUtgiftskategori_03[jun],tblUtgiftskategori_04[jun],tblUtgiftskategori_05[jun],tblUtgiftskategori_06[jun],tblUtgiftskategori_07[jun],tblUtgiftskategori_08[jun],tblUtgiftskategori_09[jun],tblUtgiftskategori_10[jun],tblUtgiftskategori_11[jun],tblUtgiftskategori_12[jun],tblUtgiftskategori_13[jun],tblUtgiftskategori_14[jun],tblUtgiftskategori_15[jun]) -> 5118 | I7: =SUM(tblUtgiftskategori_01[jul],tblUtgiftskategori_02[jul],tblUtgiftskategori_03[jul],tblUtgiftskategori_04[jul],tblUtgiftskategori_05[jul],tblUtgiftskategori_06[jul],tblUtgiftskategori_07[jul],tblUtgiftskategori_08[jul],tblUtgiftskategori_09[jul],tblUtgiftskategori_10[jul],tblUtgiftskategori_11[jul],tblUtgiftskategori_12[jul],tblUtgiftskategori_13[jul],tblUtgiftskategori_14[jul],tblUtgiftskategori_15[jul]) -> 5743 | J7: =SUM(tblUtgiftskategori_01[aug],tblUtgiftskategori_02[aug],tblUtgiftskategori_03[aug],tblUtgiftskategori_04[aug],tblUtgiftskategori_05[aug],tblUtgiftskategori_06[aug],tblUtgiftskategori_07[aug],tblUtgiftskategori_08[aug],tblUtgiftskategori_09[aug],tblUtgiftskategori_10[aug],tblUtgiftskategori_11[aug],tblUtgiftskategori_12[aug],tblUtgiftskategori_13[aug],tblUtgiftskategori_14[aug],tblUtgiftskategori_15[aug]) -> 5353 | K7: =SUM(tblUtgiftskategori_01[sep],tblUtgiftskategori_02[sep],tblUtgiftskategori_03[sep],tblUtgiftskategori_04[sep],tblUtgiftskategori_05[sep],tblUtgiftskategori_06[sep],tblUtgiftskategori_07[sep],tblUtgiftskategori_08[sep],tblUtgiftskategori_09[sep],tblUtgiftskategori_10[sep],tblUtgiftskategori_11[sep],tblUtgiftskategori_12[sep],tblUtgiftskategori_13[sep],tblUtgiftskategori_14[sep],tblUtgiftskategori_15[sep]) -> 5983 | L7: =SUM(tblUtgiftskategori_01[okt],tblUtgiftskategori_02[okt],tblUtgiftskategori_03[okt],tblUtgiftskategori_04[okt],tblUtgiftskategori_05[okt],tblUtgiftskategori_06[okt],tblUtgiftskategori_07[okt],tblUtgiftskategori_08[okt],tblUtgiftskategori_09[okt],tblUtgiftskategori_10[okt],tblUtgiftskategori_11[okt],tblUtgiftskategori_12[okt],tblUtgiftskategori_13[okt],tblUtgiftskategori_14[okt],tblUtgiftskategori_15[okt]) -> 5943 | M7: =SUM(tblUtgiftskategori_01[nov],tblUtgiftskategori_02[nov],tblUtgiftskategori_03[nov],tblUtgiftskategori_04[nov],tblUtgiftskategori_05[nov],tblUtgiftskategori_06[nov],tblUtgiftskategori_07[nov],tblUtgiftskategori_08[nov],tblUtgiftskategori_09[nov],tblUtgiftskategori_10[nov],tblUtgiftskategori_11[nov],tblUtgiftskategori_12[nov],tblUtgiftskategori_13[nov],tblUtgiftskategori_14[nov],tblUtgiftskategori_15[nov]) -> 5058 | N7: =SUM(tblUtgiftskategori_01[dec],tblUtgiftskategori_02[dec],tblUtgiftskategori_03[dec],tblUtgiftskategori_04[dec],tblUtgiftskategori_05[dec],tblUtgiftskategori_06[dec],tblUtgiftskategori_07[dec],tblUtgiftskategori_08[dec],tblUtgiftskategori_09[dec],tblUtgiftskategori_10[dec],tblUtgiftskategori_11[dec],tblUtgiftskategori_12[dec],tblUtgiftskategori_13[dec],tblUtgiftskategori_14[dec],tblUtgiftskategori_15[dec]) -> 4958 | O7: =SUM(tblUtgiftskategori_01[år],tblUtgiftskategori_02[år],tblUtgiftskategori_03[år],tblUtgiftskategori_04[år],tblUtgiftskategori_05[år],tblUtgiftskategori_06[år],tblUtgiftskategori_07[år],tblUtgiftskategori_08[år],tblUtgiftskategori_09[år],tblUtgiftskategori_10[år],tblUtgiftskategori_11[år],tblUtgiftskategori_12[år],tblUtgiftskategori_13[år],tblUtgiftskategori_14[år],tblUtgiftskategori_15[år],) -> 68594 | P7: =O7/12 -> 5716
B8: Nettoinkomst | C8: =C6-C7 -> -3714 | D8: =D6-D7 -> 3790 | E8: -1933 | F8: -1813 | G8: 3532 | H8: -3593 | I8: -4243 | J8: 1147 | K8: -1983 | L8: -1943 | M8: 3942 | N8: -958 | O8: -7769 | P8: =O8/12 -> -647
B9: TOTALT KASSAFLÖDE | C9: =C5+C6-C7 -> -2714 | D9: =C9+D6-D7 -> 1076 | E9: =D9+E6-E7 -> -857 | F9: -2670 | G9: 862 | H9: -2731 | I9: -6974 | J9: -5827 | K9: -7810 | L9: -9753 | M9: -5811 | N9: -6769
B12: inkomst
B13: löner | C13: 4000 | D13: 4000 | E13: 4000 | F13: 4000 | G13: 4000 | H13: 1000 | I13: 1000 | J13: 1000 | K13: 4000 | L13: 4000 | M13: 4000 | N13: 4000 | O13: =SUM(tblInkomst[[#This Row],[jan]:[dec]]) -> 39000 | P13: =tblInkomst[[#This Row],[år]]/12 -> 3250
B14: Ränteintäkter | C14: 222 | D14: 33 | F14: 45 | H14: 25 | O14: =SUM(tblInkomst[[#This Row],[jan]:[dec]]) -> 325 | P14: =tblInkomst[[#This Row],[år]]/12 -> 27
B15: utdelningar | D15: 5000 | G15: 5000 | J15: 5000 | M15: 5000 | O15: =SUM(tblInkomst[[#This Row],[jan]:[dec]]) -> 20000 | P15: =tblInkomst[[#This Row],[år]]/12 -> 1667
B16: bidrag/ersättning | H16: 500 | I16: 500 | J16: 500 | O16: =SUM(tblInkomst[[#This Row],[jan]:[dec]]) -> 1500 | P16: =tblInkomst[[#This Row],[år]]/12 -> 125
B17: Övrigt | O17: =SUM(tblInkomst[[#This Row],[jan]:[dec]]) -> 0 | P17: =tblInkomst[[#This Row],[år]]/12 -> 0
B18: TOTALINKOMST | C18: =SUM(tblInkomst[jan]) -> 4222 | D18: =SUM(tblInkomst[feb]) -> 9033 | E18: =SUM(tblInkomst[mar]) -> 4000 | F18: =SUM(tblInkomst[apr]) -> 4045 | G18: =SUM(tblInkomst[maj]) -> 9000 | H18: =SUM(tblInkomst[jun]) -> 1525 | I18: =SUM(tblInkomst[jul]) -> 1500 | J18: =SUM(tblInkomst[aug]) -> 6500 | K18: =SUM(tblInkomst[sep]) -> 4000 | L18: =SUM(tblInkomst[okt]) -> 4000 | M18: =SUM(tblInkomst[nov]) -> 9000 | N18: =SUM(tblInkomst[dec]) -> 4000 | O18: =SUM(tblInkomst[år]) -> 60825 | P18: =tblInkomst[[#Totals],[år]]/12 -> 5069
B21: hushåll
B22: Lån/hyra | C22: 850 | D22: 850 | E22: 850 | F22: 850 | G22: 850 | H22: 850 | I22: 850 | J22: 850 | K22: 850 | L22: 850 | M22: 900 | N22: 900 | O22: =SUM(tblUtgiftskategori_01[[#This Row],[jan]:[dec]]) -> 10300 | P22: =tblUtgiftskategori_01[[#This Row],[år]]/12 -> 858
B23: El | C23: 200 | D23: 200 | E23: 175 | F23: 150 | G23: 150 | H23: 175 | I23: 225 | J23: 275 | K23: 200 | L23: 150 | M23: 150 | N23: 150 | O23: =SUM(tblUtgiftskategori_01[[#This Row],[jan]:[dec]]) -> 2200 | P23: =tblUtgiftskategori_01[[#This Row],[år]]/12 -> 183
B24: Telefon | C24: 50 | D24: 50 | E24: 100 | F24: 100 | G24: 50 | H24: 50 | I24: 100 | J24: 100 | K24: 50 | L24: 50 | M24: 50 | N24: 50 | O24: =SUM(tblUtgiftskategori_01[[#This Row],[jan]:[dec]]) -> 800 | P24: =tblUtgiftskategori_01[[#This Row],[år]]/12 -> 67
B25: Kabel/satellit | C25: 69 | D25: 69 | E25: 69 | F25: 69 | G25: 69 | H25: 69 | I25: 69 | J25: 69 | K25: 69 | L25: 69 | M25: 69 | N25: 69 | O25: =SUM(tblUtgiftskategori_01[[#This Row],[jan]:[dec]]) -> 828 | P25: =tblUtgiftskategori_01[[#This Row],[år]]/12 -> 69
B26: Internet | C26: 39 | D26: 39 | E26: 39 | F26: 39 | G26: 39 | H26: 39 | I26: 39 | J26: 39 | K26: 39 | L26: 39 | M26: 39 | N26: 39 | O26: =SUM(tblUtgiftskategori_01[[#This Row],[jan]:[dec]]) -> 468 | P26: =tblUtgiftskategori_01[[#This Row],[år]]/12 -> 39
B27: =UPPER("Summa " & B21) -> SUMMA HUSHÅLL | C27: =SUM(tblUtgiftskategori_01[jan]) -> 1208 | D27: =SUM(tblUtgiftskategori_01[feb]) -> 1208 | E27: =SUM(tblUtgiftskategori_01[mar]) -> 1233 | F27: =SUM(tblUtgiftskategori_01[apr]) -> 1208 | G27: =SUM(tblUtgiftskategori_01[maj]) -> 1158 | H27: =SUM(tblUtgiftskategori_01[jun]) -> 1183 | I27: =SUM(tblUtgiftskategori_01[jul]) -> 1283 | J27: =SUM(tblUtgiftskategori_01[aug]) -> 1333 | K27: =SUM(tblUtgiftskategori_01[sep]) -> 1208 | L27: =SUM(tblUtgiftskategori_01[okt]) -> 1158 | M27: =SUM(tblUtgiftskategori_01[nov]) -> 1208 | N27: =SUM(tblUtgiftskategori_01[dec]) -> 1208 | O27: =SUM(tblUtgiftskategori_01[år]) -> 14596 | P27: =tblUtgiftskategori_01[[#Totals],[år]]/12 -> 1216
B30: vardag
B31: Matvaror | C31: 345 | D31: 250 | E31: 200 | F31: 400 | G31: 350 | H31: 250 | I31: 400 | J31: 350 | K31: 250 | L31: 400 | M31: 350 | N31: 250 | O31: =SUM(tblUtgiftskategori_02[[#This Row],[jan]:[dec]]) -> 3795 | P31: =tblUtgiftskategori_02[[#This Row],[år]]/12 -> 316
B32: Kläder | C32: 300 | F32: 300 | I32: 300 | L32: 300 | O32: =SUM(tblUtgiftskategori_02[[#This Row],[jan]:[dec]]) -> 1200 | P32: =tblUtgiftskategori_02[[#This Row],[år]]/12 -> 100
B33: Middag/äta ute | C33: 125 | D33: 125 | E33: 300 | F33: 125 | G33: 125 | H33: 200 | I33: 125 | J33: 125 | K33: 125 | L33: 125 | M33: 125 | N33: 125 | O33: =SUM(tblUtgiftskategori_02[[#This Row],[jan]:[dec]]) -> 1750 | P33: =tblUtgiftskategori_02[[#This Row],[år]]/12 -> 146
B34: Frisör | C34: 25 | E34: 50 | G34: 25 | I34: 50 | K34: 25 | M34: 100 | O34: =SUM(tblUtgiftskategori_02[[#This Row],[jan]:[dec]]) -> 275 | P34: =tblUtgiftskategori_02[[#This Row],[år]]/12 -> 23
B35: Övrigt | O35: =SUM(tblUtgiftskategori_02[[#This Row],[jan]:[dec]]) -> 0 | P35: =tblUtgiftskategori_02[[#This Row],[år]]/12 -> 0
B36: =UPPER("Summa " & B30) -> SUMMA VARDAG | C36: =SUM(tblUtgiftskategori_02[jan]) -> 795 | D36: =SUM(tblUtgiftskategori_02[feb]) -> 375 | E36: =SUM(tblUtgiftskategori_02[mar]) -> 550 | F36: =SUM(tblUtgiftskategori_02[apr]) -> 825 | G36: =SUM(tblUtgiftskategori_02[maj]) -> 500 | H36: =SUM(tblUtgiftskategori_02[jun]) -> 450 | I36: =SUM(tblUtgiftskategori_02[jul]) -> 875 | J36: =SUM(tblUtgiftskategori_02[aug]) -> 475 | K36: =SUM(tblUtgiftskategori_02[sep]) -> 400 | L36: =SUM(tblUtgiftskategori_02[okt]) -> 825 | M36: =SUM(tblUtgiftskategori_02[nov]) -> 575 | N36: =SUM(tblUtgiftskategori_02[dec]) -> 375 | O36: =SUM(tblUtgiftskategori_02[år]) -> 7020 | P36: =tblUtgiftskategori_02[[#Totals],[år]]/12 -> 585
B39: barn
B40: Skolmaterial | C40: 123 | E40: 100 | J40: 345 | O40: =SUM(tblUtgiftskategori_03[[#This Row],[jan]:[dec]]) -> 568 | P40: =tblUtgiftskategori_03[[#This Row],[år]]/12 -> 47
B41: Kläder | D41: 100 | G41: 100 | K41: 100 | N41: 100 | O41: =SUM(tblUtgiftskategori_03[[#This Row],[jan]:[dec]]) -> 400 | P41: =tblUtgiftskategori_03[[#This Row],[år]]/12 -> 33
B42: Skollunch | C42: 50 | D42: 50 | E42: 50 | F42: 50 | G42: 50 | H42: 50 | K42: 50 | L42: 50 | M42: 50 | N42: 50 | O42: =SUM(tblUtgiftskategori_03[[#This Row],[jan]:[dec]]) -> 500 | P42: =tblUtgiftskategori_03[[#This Row],[år]]/12 -> 42
B43: Läkemedel | C43: 200 | D43: 200 | E43: 200 | F43: 200 | G43: 200 | H43: 200 | I43: 200 | J43: 200 | K43: 200 | L43: 200 | M43: 200 | N43: 200 | O43: =SUM(tblUtgiftskategori_03[[#This Row],[jan]:[dec]]) -> 2400 | P43: =tblUtgiftskategori_03[[#This Row],[år]]/12 -> 200
B44: Övrigt | C44: 2000 | D44: 150 | H44: 200 | L44: 100 | O44: =SUM(tblUtgiftskategori_03[[#This Row],[jan]:[dec]]) -> 2450 | P44: =tblUtgiftskategori_03[[#This Row],[år]]/12 -> 204
B45: =UPPER("Summa " & B39) -> SUMMA BARN | C45: =SUM(tblUtgiftskategori_03[jan]) -> 2373 | D45: =SUM(tblUtgiftskategori_03[feb]) -> 500 | E45: =SUM(tblUtgiftskategori_03[mar]) -> 350 | F45: =SUM(tblUtgiftskategori_03[apr]) -> 250 | G45: =SUM(tblUtgiftskategori_03[maj]) -> 350 | H45: =SUM(tblUtgiftskategori_03[jun]) -> 450 | I45: =SUM(tblUtgiftskategori_03[jul]) -> 200 | J45: =SUM(tblUtgiftskategori_03[aug]) -> 545 | K45: =SUM(tblUtgiftskategori_03[sep]) -> 350 | L45: =SUM(tblUtgiftskategori_03[okt]) -> 350 | M45: =SUM(tblUtgiftskategori_03[nov]) -> 250 | N45: =SUM(tblUtgiftskategori_03[dec]) -> 350 | O45: =SUM(tblUtgiftskategori_03[år]) -> 6318 | P45: =tblUtgiftskategori_03[[#Totals],[år]]/12 -> 527
B48: resor
B49: Fordonskostnader | C49: 600 | D49: 600 | E49: 600 | F49: 600 | G49: 600 | H49: 600 | I49: 600 | J49: 600 | K49: 600 | L49: 600 | M49: 600 | N49: 600 | O49: =SUM(tblUtgiftskategori_04[[#This Row],[jan]:[dec]]) -> 7200 | P49: =tblUtgiftskategori_04[[#This Row],[år]]/12 -> 600
B50: bensin | C50: 325 | D50: 325 | E50: 325 | F50: 325 | G50: 325 | H50: 500 | I50: 500 | J50: 500 | K50: 325 | L50: 325 | M50: 325 | N50: 325 | O50: =SUM(tblUtgiftskategori_04[[#This Row],[jan]:[dec]]) -> 4425 | P50: =tblUtgiftskategori_04[[#This Row],[år]]/12 -> 369
B51: Reparationer | D51: 100 | F51: 100 | H51: 100 | J51: 100 | L51: 100 | O51: =SUM(tblUtgiftskategori_04[[#This Row],[jan]:[dec]]) -> 500 | P51: =tblUtgiftskategori_04[[#This Row],[år]]/12 -> 42
B52: trängselskatt | C52: 185 | K52: 225 | O52: =SUM(tblUtgiftskategori_04[[#This Row],[jan]:[dec]]) -> 410 | P52: =tblUtgiftskategori_04[[#This Row],[år]]/12 -> 34
B53: Övrigt | G53: 400 | O53: =SUM(tblUtgiftskategori_04[[#This Row],[jan]:[dec]]) -> 400 | P53: =tblUtgiftskategori_04[[#This Row],[år]]/12 -> 33
B54: =UPPER("Summa " & B48) -> SUMMA RESOR | C54: =SUM(tblUtgiftskategori_04[jan]) -> 1110 | D54: =SUM(tblUtgiftskategori_04[feb]) -> 1025 | E54: =SUM(tblUtgiftskategori_04[mar]) -> 925 | F54: =SUM(tblUtgiftskategori_04[apr]) -> 1025 | G54: =SUM(tblUtgiftskategori_04[maj]) -> 1325 | H54: =SUM(tblUtgiftskategori_04[jun]) -> 1200 | I54: =SUM(tblUtgiftskategori_04[jul]) -> 1100 | J54: =SUM(tblUtgiftskategori_04[aug]) -> 1200 | K54: =SUM(tblUtgiftskategori_04[sep]) -> 1150 | L54: =SUM(tblUtgiftskategori_04[okt]) -> 1025 | M54: =SUM(tblUtgiftskategori_04[nov]) -> 925 | N54: =SUM(tblUtgiftskategori_04[dec]) -> 925 | O54: =SUM(tblUtgiftskategori_04[år]) -> 12935 | P54: =tblUtgiftskategori_04[[#Totals],[år]]/12 -> 1078
B57: hälsa
B58: Läkare/tandläkare | D58: 35 | G58: 35 | H58: 35 | I58: 35 | L58: 35 | O58: =SUM(tblUtgiftskategori_05[[#This Row],[jan]:[dec]]) -> 175 | P58: =tblUtgiftskategori_05[[#This Row],[år]]/12 -> 15
B59: Läkemedel | C59: 25 | D59: 25 | E59: 25 | F59: 25 | G59: 25 | H59: 25 | I59: 25 | J59: 25 | K59: 25 | L59: 25 | M59: 25 | N59: 25 | O59: =SUM(tblUtgiftskategori_05[[#This Row],[jan]:[dec]]) -> 300 | P59: =tblUtgiftskategori_05[[#This Row],[år]]/12 -> 25
B60: Övrigt | E60: 150 | K60: 150 | O60: =SUM(tblUtgiftskategori_05[[#This Row],[jan]:[dec]]) -> 300 | P60: =tblUtgiftskategori_05[[#This Row],[år]]/12 -> 25
B61: =UPPER("Summa " & B57) -> SUMMA HÄLSA | C61: =SUM(tblUtgiftskategori_05[jan]) -> 25 | D61: =SUM(tblUtgiftskategori_05[feb]) -> 60 | E61: =SUM(tblUtgiftskategori_05[mar]) -> 175 | F61: =SUM(tblUtgiftskategori_05[apr]) -> 25 | G61: =SUM(tblUtgiftskategori_05[maj]) -> 60 | H61: =SUM(tblUtgiftskategori_05[jun]) -> 60 | I61: =SUM(tblUtgiftskategori_05[jul]) -> 60 | J61: =SUM(tblUtgiftskategori_05[aug]) -> 25 | K61: =SUM(tblUtgiftskategori_05[sep]) -> 175 | L61: =SUM(tblUtgiftskategori_05[okt]) -> 60 | M61: =SUM(tblUtgiftskategori_05[nov]) -> 25 | N61: =SUM(tblUtgiftskategori_05[dec]) -> 25 | O61: =SUM(tblUtgiftskategori_05[år]) -> 775 | P61: =tblUtgiftskategori_05[[#Totals],[år]]/12 -> 65
B64: försäkring
B65: Bil | C65: 150 | D65: 150 | E65: 150 | F65: 150 | G65: 150 | H65: 150 | I65: 150 | J65: 150 | K65: 150 | L65: 150 | M65: 150 | N65: 150 | O65: =SUM(tblUtgiftskategori_06[[#This Row],[jan]:[dec]]) -> 1800 | P65: =tblUtgiftskategori_06[[#This Row],[år]]/12 -> 150
B66: Hälsa | C66: 675 | D66: 675 | E66: 675 | F66: 675 | G66: 675 | H66: 675 | I66: 675 | J66: 675 | K66: 675 | L66: 675 | M66: 675 | N66: 675 | O66: =SUM(tblUtgiftskategori_06[[#This Row],[jan]:[dec]]) -> 8100 | P66: =tblUtgiftskategori_06[[#This Row],[år]]/12 -> 675
B67: Liv | C67: 150 | D67: 150 | E67: 150 | F67: 150 | G67: 150 | H67: 150 | I67: 150 | J67: 150 | K67: 150 | L67: 150 | M67: 150 | N67: 150 | O67: =SUM(tblUtgiftskategori_06[[#This Row],[jan]:[dec]]) -> 1800 | P67: =tblUtgiftskategori_06[[#This Row],[år]]/12 -> 150
B68: =UPPER("Summa " & B64) -> SUMMA FÖRSÄKRING | C68: =SUM(tblUtgiftskategori_06[jan]) -> 975 | D68: =SUM(tblUtgiftskategori_06[feb]) -> 975 | E68: =SUM(tblUtgiftskategori_06[mar]) -> 975 | F68: =SUM(tblUtgiftskategori_06[apr]) -> 975 | G68: =SUM(tblUtgiftskategori_06[maj]) -> 975 | H68: =SUM(tblUtgiftskategori_06[jun]) -> 975 | I68: =SUM(tblUtgiftskategori_06[jul]) -> 975 | J68: =SUM(tblUtgiftskategori_06[aug]) -> 975 | K68: =SUM(tblUtgiftskategori_06[sep]) -> 975 | L68: =SUM(tblUtgiftskategori_06[okt]) -> 975 | M68: =SUM(tblUtgiftskategori_06[nov]) -> 975 | N68: =SUM(tblUtgiftskategori_06[dec]) -> 975 | O68: =SUM(tblUtgiftskategori_06[år]) -> 11700 | P68: =tblUtgiftskategori_06[[#Totals],[år]]/12 -> 975
B71: utbildning
B72: avgift | E72: 400 | K72: 400 | O72: =SUM(tblUtgiftskategori_07[[#This Row],[jan]:[dec]]) -> 800 | P72: =tblUtgiftskategori_07[[#This Row],[år]]/12 -> 67
B73: Böcker | E73: 225 | K73: 225 | O73: =SUM(tblUtgiftskategori_07[[#This Row],[jan]:[dec]]) -> 450 | P73: =tblUtgiftskategori_07[[#This Row],[år]]/12 -> 38
B74: Övrigt | O74: =SUM(tblUtgiftskategori_07[[#This Row],[jan]:[dec]]) -> 0 | P74: =tblUtgiftskategori_07[[#This Row],[år]]/12 -> 0
B75: =UPPER("Summa " & B71) -> SUMMA UTBILDNING | C75: =SUM(tblUtgiftskategori_07[jan]) -> 0 | D75: =SUM(tblUtgiftskategori_07[feb]) -> 0 | E75: =SUM(tblUtgiftskategori_07[mar]) -> 625 | F75: =SUM(tblUtgiftskategori_07[apr]) -> 0 | G75: =SUM(tblUtgiftskategori_07[maj]) -> 0 | H75: =SUM(tblUtgiftskategori_07[jun]) -> 0 | I75: =SUM(tblUtgiftskategori_07[jul]) -> 0 | J75: =SUM(tblUtgiftskategori_07[aug]) -> 0 | K75: =SUM(tblUtgiftskategori_07[sep]) -> 625 | L75: =SUM(tblUtgiftskategori_07[okt]) -> 0 | M75: =SUM(tblUtgiftskategori_07[nov]) -> 0 | N75: =SUM(tblUtgiftskategori_07[dec]) -> 0 | O75: =SUM(tblUtgiftskategori_07[år]) -> 1250 | P75: =tblUtgiftskategori_07[[#Totals],[år]]/12 -> 104
B78: välgörenhet
B79: Presenter | D79: 100 | H79: 100 | L79: 100 | O79: =SUM(tblUtgiftskategori_08[[#This Row],[jan]:[dec]]) -> 300 | P79: =tblUtgiftskategori_08[[#This Row],[år]]/12 -> 25
B80: Välgörenhet | E80: 100 | G80: 100 | I80: 100 | K80: 100 | M80: 100 | O80: =SUM(tblUtgiftskategori_08[[#This Row],[jan]:[dec]]) -> 500 | P80: =tblUtgiftskategori_08[[#This Row],[år]]/12 -> 42
B81: Övrigt | F81: 100 | J81: 100 | N81: 100 | O81: =SUM(tblUtgiftskategori_08[[#This Row],[jan]:[dec]]) -> 300 | P81: =tblUtgiftskategori_08[[#This Row],[år]]/12 -> 25
B82: =UPPER("Summa " & B78) -> SUMMA VÄLGÖRENHET | C82: =SUM(tblUtgiftskategori_08[jan]) -> 0 | D82: =SUM(tblUtgiftskategori_08[feb]) -> 100 | E82: =SUM(tblUtgiftskategori_08[mar]) -> 100 | F82: =SUM(tblUtgiftskategori_08[apr]) -> 100 | G82: =SUM(tblUtgiftskategori_08[maj]) -> 100 | H82: =SUM(tblUtgiftskategori_08[jun]) -> 100 | I82: =SUM(tblUtgiftskategori_08[jul]) -> 100 | J82: =SUM(tblUtgiftskategori_08[aug]) -> 100 | K82: =SUM(tblUtgiftskategori_08[sep]) -> 100 | L82: =SUM(tblUtgiftskategori_08[okt]) -> 100 | M82: =SUM(tblUtgiftskategori_08[nov]) -> 100 | N82: =SUM(tblUtgiftskategori_08[dec]) -> 100 | O82: =SUM(tblUtgiftskategori_08[år]) -> 1100 | P82: =tblUtgiftskategori_08[[#Totals],[år]]/12 -> 92
B85: besparingar
B86: katastroffond | C86: 100 | D86: 100 | E86: 100 | F86: 100 | G86: 100 | K86: 100 | L86: 100 | M86: 100 | N86: 100 | O86: =SUM(tblUtgiftskategori_09[[#This Row],[jan]:[dec]]) -> 900 | P86: =tblUtgiftskategori_09[[#This Row],[år]]/12 -> 75
B87: Pension (401k, sparkonto) | C87: 500 | D87: 500 | E87: 500 | F87: 500 | G87: 500 | H87: 500 | I87: 500 | J87: 500 | K87: 500 | L87: 500 | M87: 500 | N87: 500 | O87: =SUM(tblUtgiftskategori_09[[#This Row],[jan]:[dec]]) -> 6000 | P87: =tblUtgiftskategori_09[[#This Row],[år]]/12 -> 500
B88: till sparkonto | C88: 200 | D88: 200 | E88: 200 | F88: 200 | G88: 200 | K88: 200 | L88: 200 | M88: 200 | N88: 200 | O88: =SUM(tblUtgiftskategori_09[[#This Row],[jan]:[dec]]) -> 1800 | P88: =tblUtgiftskategori_09[[#This Row],[år]]/12 -> 150
B89: =UPPER("Summa " & B85) -> SUMMA BESPARINGAR | C89: =SUM(tblUtgiftskategori_09[jan]) -> 800 | D89: =SUM(tblUtgiftskategori_09[feb]) -> 800 | E89: =SUM(tblUtgiftskategori_09[mar]) -> 800 | F89: =SUM(tblUtgiftskategori_09[apr]) -> 800 | G89: =SUM(tblUtgiftskategori_09[maj]) -> 800 | H89: =SUM(tblUtgiftskategori_09[jun]) -> 500 | I89: =SUM(tblUtgiftskategori_09[jul]) -> 500 | J89: =SUM(tblUtgiftskategori_09[aug]) -> 500 | K89: =SUM(tblUtgiftskategori_09[sep]) -> 800 | L89: =SUM(tblUtgiftskategori_09[okt]) -> 800 | M89: =SUM(tblUtgiftskategori_09[nov]) -> 800 | N89: =SUM(tblUtgiftskategori_09[dec]) -> 800 | O89: =SUM(tblUtgiftskategori_09[år]) -> 8700 | P89: =tblUtgiftskategori_09[[#Totals],[år]]/12 -> 725
B92: skulder
B93: Kreditkort 1 | C93: 145 | D93: 145 | E93: 145 | F93: 145 | G93: 145 | H93: 145 | I93: 145 | J93: 145 | K93: 145 | L93: 145 | M93: 145 | N93: 145 | O93: =SUM(tblUtgiftskategori_10[[#This Row],[jan]:[dec]]) -> 1740 | P93: =tblUtgiftskategori_10[år]/12 -> 145
B94: statlig skatt | C94: 450 | F94: 450 | I94: 450 | L94: 450 | O94: =SUM(tblUtgiftskategori_10[[#This Row],[jan]:[dec]]) -> 1800 | P94: =tblUtgiftskategori_10[år]/12 -> 150
B95: Studielån | C95: 55 | D95: 55 | E95: 55 | F95: 55 | G95: 55 | H95: 55 | I95: 55 | J95: 55 | K95: 55 | L95: 55 | M95: 55 | N95: 55 | O95: =SUM(tblUtgiftskategori_10[[#This Row],[jan]:[dec]]) -> 660 | P95: =tblUtgiftskategori_10[år]/12 -> 55
B96: =UPPER("Summa " & B92) -> SUMMA SKULDER | C96: =SUM(tblUtgiftskategori_10[jan]) -> 650 | D96: =SUM(tblUtgiftskategori_10[feb]) -> 200 | E96: =SUM(tblUtgiftskategori_10[mar]) -> 200 | F96: =SUM(tblUtgiftskategori_10[apr]) -> 650 | G96: =SUM(tblUtgiftskategori_10[maj]) -> 200 | H96: =SUM(tblUtgiftskategori_10[jun]) -> 200 | I96: =SUM(tblUtgiftskategori_10[jul]) -> 650 | J96: =SUM(tblUtgiftskategori_10[aug]) -> 200 | K96: =SUM(tblUtgiftskategori_10[sep]) -> 200 | L96: =SUM(tblUtgiftskategori_10[okt]) -> 650 | M96: =SUM(tblUtgiftskategori_10[nov]) -> 200 | N96: =SUM(tblUtgiftskategori_10[dec]) -> 200 | O96: =SUM(tblUtgiftskategori_10[år]) -> 4200 | P96: =tblUtgiftskategori_10[[#Totals],[år]]/12 -> 350
O100: =SUM(tblUtgiftskategori_11[[#This Row],[jan]:[dec]]) -> 0 | P100: =tblUtgiftskategori_11[år]/12 -> 0
O101: =SUM(tblUtgiftskategori_11[[#This Row],[jan]:[dec]]) -> 0 | P101: =tblUtgiftskategori_11[år]/12 -> 0
O102: =SUM(tblUtgiftskategori_11[[#This Row],[jan]:[dec]]) -> 0 | P102: =tblUtgiftskategori_11[år]/12 -> 0
B103: =UPPER("Summa " & B99) -> SUMMA | C103: =SUM(tblUtgiftskategori_11[jan]) -> 0 | D103: =SUM(tblUtgiftskategori_11[feb]) -> 0 | E103: =SUM(tblUtgiftskategori_11[mar]) -> 0 | F103: =SUM(tblUtgiftskategori_11[apr]) -> 0 | G103: =SUM(tblUtgiftskategori_11[maj]) -> 0 | H103: =SUM(tblUtgiftskategori_11[jun]) -> 0 | I103: =SUM(tblUtgiftskategori_11[jul]) -> 0 | J103: =SUM(tblUtgiftskategori_11[aug]) -> 0 | K103: =SUM(tblUtgiftskategori_11[sep]) -> 0 | L103: =SUM(tblUtgiftskategori_11[okt]) -> 0 | M103: =SUM(tblUtgiftskategori_11[nov]) -> 0 | N103: =SUM(tblUtgiftskategori_11[dec]) -> 0 | O103: =SUM(tblUtgiftskategori_11[år]) -> 0 | P103: =tblUtgiftskategori_11[[#Totals],[år]]/12 -> 0
O107: =SUM(tblUtgiftskategori_12[[#This Row],[jan]:[dec]]) -> 0 | P107: =tblUtgiftskategori_12[år]/12 -> 0
O108: =SUM(tblUtgiftskategori_12[[#This Row],[jan]:[dec]]) -> 0 | P108: =tblUtgiftskategori_12[år]/12 -> 0
O109: =SUM(tblUtgiftskategori_12[[#This Row],[jan]:[dec]]) -> 0 | P109: =tblUtgiftskategori_12[år]/12 -> 0
B110: =UPPER("Summa " & B106) -> SUMMA | C110: =SUM(tblUtgiftskategori_12[jan]) -> 0 | D110: =SUM(tblUtgiftskategori_12[feb]) -> 0 | E110: =SUM(tblUtgiftskategori_12[mar]) -> 0 | F110: =SUM(tblUtgiftskategori_12[apr]) -> 0 | G110: =SUM(tblUtgiftskategori_12[maj]) -> 0 | H110: =SUM(tblUtgiftskategori_12[jun]) -> 0 | I110: =SUM(tblUtgiftskategori_12[jul]) -> 0 | J110: =SUM(tblUtgiftskategori_12[aug]) -> 0 | K110: =SUM(tblUtgiftskategori_12[sep]) -> 0 | L110: =SUM(tblUtgiftskategori_12[okt]) -> 0 | M110: =SUM(tblUtgiftskategori_12[nov]) -> 0 | N110: =SUM(tblUtgiftskategori_12[dec]) -> 0 | O110: =SUM(tblUtgiftskategori_12[år]) -> 0 | P110: =tblUtgiftskategori_12[[#Totals],[år]]/12 -> 0
O114: =SUM(tblUtgiftskategori_13[[#This Row],[jan]:[dec]]) -> 0 | P114: =tblUtgiftskategori_13[år]/12 -> 0
O115: =SUM(tblUtgiftskategori_13[[#This Row],[jan]:[dec]]) -> 0 | P115: =tblUtgiftskategori_13[år]/12 -> 0
O116: =SUM(tblUtgiftskategori_13[[#This Row],[jan]:[dec]]) -> 0 | P116: =tblUtgiftskategori_13[år]/12 -> 0
B117: =UPPER("Summa " & B113) -> SUMMA | C117: =SUM(tblUtgiftskategori_13[jan]) -> 0 | D117: =SUM(tblUtgiftskategori_13[feb]) -> 0 | E117: =SUM(tblUtgiftskategori_13[mar]) -> 0 | F117: =SUM(tblUtgiftskategori_13[apr]) -> 0 | G117: =SUM(tblUtgiftskategori_13[maj]) -> 0 | H117: =SUM(tblUtgiftskategori_13[jun]) -> 0 | I117: =SUM(tblUtgiftskategori_13[jul]) -> 0 | J117: =SUM(tblUtgiftskategori_13[aug]) -> 0 | K117: =SUM(tblUtgiftskategori_13[sep]) -> 0 | L117: =SUM(tblUtgiftskategori_13[okt]) -> 0 | M117: =SUM(tblUtgiftskategori_13[nov]) -> 0 | N117: =SUM(tblUtgiftskategori_13[dec]) -> 0 | O117: =SUM(tblUtgiftskategori_13[år]) -> 0 | P117: =tblUtgiftskategori_13[[#Totals],[år]]/12 -> 0
O121: =SUM(tblUtgiftskategori_14[[#This Row],[jan]:[dec]]) -> 0 | P121: =tblUtgiftskategori_14[år]/12 -> 0
O122: =SUM(tblUtgiftskategori_14[[#This Row],[jan]:[dec]]) -> 0 | P122: =tblUtgiftskategori_14[år]/12 -> 0
O123: =SUM(tblUtgiftskategori_14[[#This Row],[jan]:[dec]]) -> 0 | P123: =tblUtgiftskategori_14[år]/12 -> 0
B124: =UPPER("Summa " & B120) -> SUMMA | C124: =SUM(tblUtgiftskategori_14[jan]) -> 0 | D124: =SUM(tblUtgiftskategori_14[feb]) -> 0 | E124: =SUM(tblUtgiftskategori_14[mar]) -> 0 | F124: =SUM(tblUtgiftskategori_14[apr]) -> 0 | G124: =SUM(tblUtgiftskategori_14[maj]) -> 0 | H124: =SUM(tblUtgiftskategori_14[jun]) -> 0 | I124: =SUM(tblUtgiftskategori_14[jul]) -> 0 | J124: =SUM(tblUtgiftskategori_14[aug]) -> 0 | K124: =SUM(tblUtgiftskategori_14[sep]) -> 0 | L124: =SUM(tblUtgiftskategori_14[okt]) -> 0 | M124: =SUM(tblUtgiftskategori_14[nov]) -> 0 | N124: =SUM(tblUtgiftskategori_14[dec]) -> 0 | O124: =SUM(tblUtgiftskategori_14[år]) -> 0 | P124: =tblUtgiftskategori_14[[#Totals],[år]]/12 -> 0
O128: =SUM(tblUtgiftskategori_15[[#This Row],[jan]:[dec]]) -> 0 | P128: =tblUtgiftskategori_15[år]/12 -> 0
O129: =SUM(tblUtgiftskategori_15[[#This Row],[jan]:[dec]]) -> 0 | P129: =tblUtgiftskategori_15[år]/12 -> 0
O130: =SUM(tblUtgiftskategori_15[[#This Row],[jan]:[dec]]) -> 0 | P130: =tblUtgiftskategori_15[år]/12 -> 0
B131: =UPPER("Summa " & B127) -> SUMMA | C131: =SUM(tblUtgiftskategori_15[jan]) -> 0 | D131: =SUM(tblUtgiftskategori_15[feb]) -> 0 | E131: =SUM(tblUtgiftskategori_15[mar]) -> 0 | F131: =SUM(tblUtgiftskategori_15[apr]) -> 0 | G131: =SUM(tblUtgiftskategori_15[maj]) -> 0 | H131: =SUM(tblUtgiftskategori_15[jun]) -> 0 | I131: =SUM(tblUtgiftskategori_15[jul]) -> 0 | J131: =SUM(tblUtgiftskategori_15[aug]) -> 0 | K131: =SUM(tblUtgiftskategori_15[sep]) -> 0 | L131: =SUM(tblUtgiftskategori_15[okt]) -> 0 | M131: =SUM(tblUtgiftskategori_15[nov]) -> 0 | N131: =SUM(tblUtgiftskategori_15[dec]) -> 0 | O131: =SUM(tblUtgiftskategori_15[år]) -> 0 | P131: =tblUtgiftskategori_15[[#Totals],[år]]/12 -> 0

Sheet Installation
B1: FAMILJEN JOHANSSON 2012
B2: inkomst | D2: utgifter
B3: löner
B4: ränteintäkter | D4: hushåll | F4: hushåll | H4: vardag | J4: barn
B5: utdelningar | D5: vardag | F5: lån/hyra | H5: matvaror | J5: läkemedel
B6: gåvor | D6: barn | F6: el | H6: personliga ägodelar | J6: kläder
B7: bidrag/ersättning | D7: resor | F7: gas/olja | H7: kläder | J7: skolavgifter
B8: Besparingsöverföringar | D8: hälsa | F8: vatten/avlopp/avfall | H8: städning | J8: skollunch
B9: övrigt | D9: försäkring | F9: telefon | H9: middag/äta ute | J9: skolmaterial
D10: utbildning | F10: kabel/satellit | H10: kemtvätt | J10: barnpassning
D11: välgörenhet | F11: Internet | H11: frisör | J11: leksaker/spel
D12: besparingar | F12: möbler/hushållsapparater | H12: övrigt | J12: övrigt
D13: skulder | F13: gräsmatta/trädgård
D14: nöjen | F14: tillbehör
D15: husdjur | F15: underhåll
D16: prenumerationer | F16: renoveringar
D17: semester | F17: övrigt
D18: övrigt
F20: resor | H20: hälsa | J20: försäkring
F21: fordonskostnader | H21: läkare/tandläkare | J21: bil
F22: bensin | H22: läkemedel | J22: hälsa
F23: kollektivtrafik | H23: medlemsavgifter | J23: hem
F24: reparationer | H24: akutvård | J24: liv
F25: trängselskatt | H25: övrigt | J25: övrigt
F26: övrigt
F29: utbildning | H29: välgörenhet | J29: besparingar
F30: avgift | H30: presenter | J30: katastroffond
F31: böcker | H31: välgörenhet | J31: till sparkonto
F32: musiklektioner | H32: religiös välgörenhet | J32: pension (401k, sparkonto)
F33: övrigt | H33: övrigt | J33: investeringar
J34: högskola
J35: övrigt
F38: skulder | H38: nöjen | J38: husdjur
F39: studielån | H39: film | J39: mat
F40: övriga lån | H40: musik | J40: läkemedel
F41: kreditkort 1 | H41: spel | J41: leksaker/tillbehör
F42: kreditkort 2 | H42: hyrfilm | J42: övrigt
F43: kreditkort 3 | H43: bio/teater
F44: barnbidrag | H44: konserter
F45: statlig skatt | H45: böcker
F46: fastighetsskatt | H46: hobby
F47: kommunalskatt | H47: film/foto
F48: samfällighetsavgifter | H48: sport
F49: juridiska kostnader | H49: friluftsliv
F50: övrigt | H50: leksaker/prylar
H51: övrigt
F53: prenumerationer | H53: semester | J53: övrigt
F54: tidningar | H54: resor | J54: bankavgifter
F55: tidskrifter | H55: logi | J55: porto
F56: medlemsavgifter | H56: mat | J56: övrigt
F57: klubbmedlemskap | H57: hyrbil
F58: övrigt | H58: nöjen
H59: övrigt

Sheet diagramdata (hidden)
B1: *** Det här bladet ska vara dolt ***
B4: Period | C4: 3
C6: jan | D6: feb | E6: mar | F6: apr | G6: maj | H6: jun | I6: jul | J6: aug | K6: sep | L6: okt | M6: nov | N6: dec | O6: år | P6: Medel
B7: =LOWER(Budget!B127) ->  | C7: =SUM(tblUtgiftskategori_15[jan]) -> 0 | D7: =SUM(tblUtgiftskategori_15[feb]) -> 0 | E7: =SUM(tblUtgiftskategori_15[mar]) -> 0 | F7: =SUM(tblUtgiftskategori_15[apr]) -> 0 | G7: =SUM(tblUtgiftskategori_15[maj]) -> 0 | H7: =SUM(tblUtgiftskategori_15[jun]) -> 0 | I7: =SUM(tblUtgiftskategori_15[jul]) -> 0 | J7: =SUM(tblUtgiftskategori_15[aug]) -> 0 | K7: =SUM(tblUtgiftskategori_15[sep]) -> 0 | L7: =SUM(tblUtgiftskategori_15[okt]) -> 0 | M7: =SUM(tblUtgiftskategori_15[nov]) -> 0 | N7: =SUM(tblUtgiftskategori_15[dec]) -> 0 | O7: =SUM(tblUtgiftskategori_15[år]) -> 0 | P7: =SUM(tblUtgiftskategori_15[medel]) -> 0
B8: =LOWER(Budget!B120) ->  | C8: =SUM(tblUtgiftskategori_14[jan]) -> 0 | D8: =SUM(tblUtgiftskategori_14[feb]) -> 0 | E8: =SUM(tblUtgiftskategori_14[mar]) -> 0 | F8: =SUM(tblUtgiftskategori_14[apr]) -> 0 | G8: =SUM(tblUtgiftskategori_14[maj]) -> 0 | H8: =SUM(tblUtgiftskategori_14[jun]) -> 0 | I8: =SUM(tblUtgiftskategori_14[jul]) -> 0 | J8: =SUM(tblUtgiftskategori_14[aug]) -> 0 | K8: =SUM(tblUtgiftskategori_14[sep]) -> 0 | L8: =SUM(tblUtgiftskategori_14[okt]) -> 0 | M8: =SUM(tblUtgiftskategori_14[nov]) -> 0 | N8: =SUM(tblUtgiftskategori_14[dec]) -> 0 | O8: =SUM(tblUtgiftskategori_14[år]) -> 0 | P8: =SUM(tblUtgiftskategori_14[medel]) -> 0
B9: =LOWER(Budget!B113) ->  | C9: =SUM(tblUtgiftskategori_13[jan]) -> 0 | D9: =SUM(tblUtgiftskategori_13[feb]) -> 0 | E9: =SUM(tblUtgiftskategori_13[mar]) -> 0 | F9: =SUM(tblUtgiftskategori_13[apr]) -> 0 | G9: =SUM(tblUtgiftskategori_13[maj]) -> 0 | H9: =SUM(tblUtgiftskategori_13[jun]) -> 0 | I9: =SUM(tblUtgiftskategori_13[jul]) -> 0 | J9: =SUM(tblUtgiftskategori_13[aug]) -> 0 | K9: =SUM(tblUtgiftskategori_13[sep]) -> 0 | L9: =SUM(tblUtgiftskategori_13[okt]) -> 0 | M9: =SUM(tblUtgiftskategori_13[nov]) -> 0 | N9: =SUM(tblUtgiftskategori_13[dec]) -> 0 | O9: =SUM(tblUtgiftskategori_13[år]) -> 0 | P9: =SUM(tblUtgiftskategori_13[medel]) -> 0
B10: =LOWER(Budget!B106) ->  | C10: =SUM(tblUtgiftskategori_12[jan]) -> 0 | D10: =SUM(tblUtgiftskategori_12[feb]) -> 0 | E10: =SUM(tblUtgiftskategori_12[mar]) -> 0 | F10: =SUM(tblUtgiftskategori_12[apr]) -> 0 | G10: =SUM(tblUtgiftskategori_12[maj]) -> 0 | H10: =SUM(tblUtgiftskategori_12[jun]) -> 0 | I10: =SUM(tblUtgiftskategori_12[jul]) -> 0 | J10: =SUM(tblUtgiftskategori_12[aug]) -> 0 | K10: =SUM(tblUtgiftskategori_12[sep]) -> 0 | L10: =SUM(tblUtgiftskategori_12[okt]) -> 0 | M10: =SUM(tblUtgiftskategori_12[nov]) -> 0 | N10: =SUM(tblUtgiftskategori_12[dec]) -> 0 | O10: =SUM(tblUtgiftskategori_12[år]) -> 0 | P10: =SUM(tblUtgiftskategori_12[medel]) -> 0
B11: =LOWER(Budget!B99) ->  | C11: =SUM(tblUtgiftskategori_11[jan]) -> 0 | D11: =SUM(tblUtgiftskategori_11[feb]) -> 0 | E11: =SUM(tblUtgiftskategori_11[mar]) -> 0 | F11: =SUM(tblUtgiftskategori_11[apr]) -> 0 | G11: =SUM(tblUtgiftskategori_11[maj]) -> 0 | H11: =SUM(tblUtgiftskategori_11[jun]) -> 0 | I11: =SUM(tblUtgiftskategori_11[jul]) -> 0 | J11: =SUM(tblUtgiftskategori_11[aug]) -> 0 | K11: =SUM(tblUtgiftskategori_11[sep]) -> 0 | L11: =SUM(tblUtgiftskategori_11[okt]) -> 0 | M11: =SUM(tblUtgiftskategori_11[nov]) -> 0 | N11: =SUM(tblUtgiftskategori_11[dec]) -> 0 | O11: =SUM(tblUtgiftskategori_11[år]) -> 0 | P11: =SUM(tblUtgiftskategori_11[medel]) -> 0
B12: =LOWER(Budget!B92) -> skulder | C12: =SUM(tblUtgiftskategori_10[jan]) -> 650 | D12: =SUM(tblUtgiftskategori_10[feb]) -> 200 | E12: =SUM(tblUtgiftskategori_10[mar]) -> 200 | F12: =SUM(tblUtgiftskategori_10[apr]) -> 650 | G12: =SUM(tblUtgiftskategori_10[maj]) -> 200 | H12: =SUM(tblUtgiftskategori_10[jun]) -> 200 | I12: =SUM(tblUtgiftskategori_10[jul]) -> 650 | J12: =SUM(tblUtgiftskategori_10[aug]) -> 200 | K12: =SUM(tblUtgiftskategori_10[sep]) -> 200 | L12: =SUM(tblUtgiftskategori_10[okt]) -> 650 | M12: =SUM(tblUtgiftskategori_10[nov]) -> 200 | N12: =SUM(tblUtgiftskategori_10[dec]) -> 200 | O12: =SUM(tblUtgiftskategori_10[år]) -> 4,200 | P12: =SUM(tblUtgiftskategori_10[medel]) -> 350
B13: =LOWER(Budget!B85) -> besparingar | C13: =SUM(tblUtgiftskategori_09[jan]) -> 800 | D13: =SUM(tblUtgiftskategori_09[feb]) -> 800 | E13: =SUM(tblUtgiftskategori_09[mar]) -> 800 | F13: =SUM(tblUtgiftskategori_09[apr]) -> 800 | G13: =SUM(tblUtgiftskategori_09[maj]) -> 800 | H13: =SUM(tblUtgiftskategori_09[jun]) -> 500 | I13: =SUM(tblUtgiftskategori_09[jul]) -> 500 | J13: =SUM(tblUtgiftskategori_09[aug]) -> 500 | K13: =SUM(tblUtgiftskategori_09[sep]) -> 800 | L13: =SUM(tblUtgiftskategori_09[okt]) -> 800 | M13: =SUM(tblUtgiftskategori_09[nov]) -> 800 | N13: =SUM(tblUtgiftskategori_09[dec]) -> 800 | O13: =SUM(tblUtgiftskategori_09[år]) -> 8,700 | P13: =SUM(tblUtgiftskategori_09[medel]) -> 725
B14: =LOWER(Budget!B78) -> välgörenhet | C14: =SUM(tblUtgiftskategori_08[jan]) -> 0 | D14: =SUM(tblUtgiftskategori_08[feb]) -> 100 | E14: =SUM(tblUtgiftskategori_08[mar]) -> 100 | F14: =SUM(tblUtgiftskategori_08[apr]) -> 100 | G14: =SUM(tblUtgiftskategori_08[maj]) -> 100 | H14: =SUM(tblUtgiftskategori_08[jun]) -> 100 | I14: =SUM(tblUtgiftskategori_08[jul]) -> 100 | J14: =SUM(tblUtgiftskategori_08[aug]) -> 100 | K14: =SUM(tblUtgiftskategori_08[sep]) -> 100 | L14: =SUM(tblUtgiftskategori_08[okt]) -> 100 | M14: =SUM(tblUtgiftskategori_08[nov]) -> 100 | N14: =SUM(tblUtgiftskategori_08[dec]) -> 100 | O14: =SUM(tblUtgiftskategori_08[år]) -> 1,100 | P14: =SUM(tblUtgiftskategori_08[medel]) -> 92
B15: =LOWER(Budget!B71) -> utbildning | C15: =SUM(tblUtgiftskategori_07[jan]) -> 0 | D15: =SUM(tblUtgiftskategori_07[feb]) -> 0 | E15: =SUM(tblUtgiftskategori_07[mar]) -> 625 | F15: =SUM(tblUtgiftskategori_07[apr]) -> 0 | G15: =SUM(tblUtgiftskategori_07[maj]) -> 0 | H15: =SUM(tblUtgiftskategori_07[jun]) -> 0 | I15: =SUM(tblUtgiftskategori_07[jul]) -> 0 | J15: =SUM(tblUtgiftskategori_07[aug]) -> 0 | K15: =SUM(tblUtgiftskategori_07[sep]) -> 625 | L15: =SUM(tblUtgiftskategori_07[okt]) -> 0 | M15: =SUM(tblUtgiftskategori_07[nov]) -> 0 | N15: =SUM(tblUtgiftskategori_07[dec]) -> 0 | O15: =SUM(tblUtgiftskategori_07[år]) -> 1,250 | P15: =SUM(tblUtgiftskategori_07[medel]) -> 104
B16: =LOWER(Budget!B64) -> försäkring | C16: =SUM(tblUtgiftskategori_06[jan]) -> 975 | D16: =SUM(tblUtgiftskategori_06[feb]) -> 975 | E16: =SUM(tblUtgiftskategori_06[mar]) -> 975 | F16: =SUM(tblUtgiftskategori_06[apr]) -> 975 | G16: =SUM(tblUtgiftskategori_06[maj]) -> 975 | H16: =SUM(tblUtgiftskategori_06[jun]) -> 975 | I16: =SUM(tblUtgiftskategori_06[jul]) -> 975 | J16: =SUM(tblUtgiftskategori_06[aug]) -> 975 | K16: =SUM(tblUtgiftskategori_06[sep]) -> 975 | L16: =SUM(tblUtgiftskategori_06[okt]) -> 975 | M16: =SUM(tblUtgiftskategori_06[nov]) -> 975 | N16: =SUM(tblUtgiftskategori_06[dec]) -> 975 | O16: =SUM(tblUtgiftskategori_06[år]) -> 11,700 | P16: =SUM(tblUtgiftskategori_06[medel]) -> 975
B17: =LOWER(Budget!B57) -> hälsa | C17: =SUM(tblUtgiftskategori_05[jan]) -> 25 | D17: =SUM(tblUtgiftskategori_05[feb]) -> 60 | E17: =SUM(tblUtgiftskategori_05[mar]) -> 175 | F17: =SUM(tblUtgiftskategori_05[apr]) -> 25 | G17: =SUM(tblUtgiftskategori_05[maj]) -> 60 | H17: =SUM(tblUtgiftskategori_05[jun]) -> 60 | I17: =SUM(tblUtgiftskategori_05[jul]) -> 60 | J17: =SUM(tblUtgiftskategori_05[aug]) -> 25 | K17: =SUM(tblUtgiftskategori_05[sep]) -> 175 | L17: =SUM(tblUtgiftskategori_05[okt]) -> 60 | M17: =SUM(tblUtgiftskategori_05[nov]) -> 25 | N17: =SUM(tblUtgiftskategori_05[dec]) -> 25 | O17: =SUM(tblUtgiftskategori_05[år]) -> 775 | P17: =SUM(tblUtgiftskategori_05[medel]) -> 65
B18: =LOWER(Budget!B48) -> resor | C18: =SUM(tblUtgiftskategori_04[jan]) -> 1,110 | D18: =SUM(tblUtgiftskategori_04[feb]) -> 1,025 | E18: =SUM(tblUtgiftskategori_04[mar]) -> 925 | F18: =SUM(tblUtgiftskategori_04[apr]) -> 1,025 | G18: =SUM(tblUtgiftskategori_04[maj]) -> 1,325 | H18: =SUM(tblUtgiftskategori_04[jun]) -> 1,200 | I18: =SUM(tblUtgiftskategori_04[jul]) -> 1,100 | J18: =SUM(tblUtgiftskategori_04[aug]) -> 1,200 | K18: =SUM(tblUtgiftskategori_04[sep]) -> 1,150 | L18: =SUM(tblUtgiftskategori_04[okt]) -> 1,025 | M18: =SUM(tblUtgiftskategori_04[nov]) -> 925 | N18: =SUM(tblUtgiftskategori_04[dec]) -> 925 | O18: =SUM(tblUtgiftskategori_04[år]) -> 12,935 | P18: =SUM(tblUtgiftskategori_04[medel]) -> 1,078
B19: =LOWER(Budget!B39) -> barn | C19: =SUM(tblUtgiftskategori_03[jan]) -> 2,373 | D19: =SUM(tblUtgiftskategori_03[feb]) -> 500 | E19: =SUM(tblUtgiftskategori_03[mar]) -> 350 | F19: =SUM(tblUtgiftskategori_03[apr]) -> 250 | G19: =SUM(tblUtgiftskategori_03[maj]) -> 350 | H19: =SUM(tblUtgiftskategori_03[jun]) -> 450 | I19: =SUM(tblUtgiftskategori_03[jul]) -> 200 | J19: =SUM(tblUtgiftskategori_03[aug]) -> 545 | K19: =SUM(tblUtgiftskategori_03[sep]) -> 350 | L19: =SUM(tblUtgiftskategori_03[okt]) -> 350 | M19: =SUM(tblUtgiftskategori_03[nov]) -> 250 | N19: =SUM(tblUtgiftskategori_03[dec]) -> 350 | O19: =SUM(tblUtgiftskategori_03[år]) -> 6,318 | P19: =SUM(tblUtgiftskategori_03[medel]) -> 527
B20: =LOWER(Budget!B30) -> vardag | C20: =SUM(tblUtgiftskategori_02[jan]) -> 795 | D20: =SUM(tblUtgiftskategori_02[feb]) -> 375 | E20: =SUM(tblUtgiftskategori_02[mar]) -> 550 | F20: =SUM(tblUtgiftskategori_02[apr]) -> 825 | G20: =SUM(tblUtgiftskategori_02[maj]) -> 500 | H20: =SUM(tblUtgiftskategori_02[jun]) -> 450 | I20: =SUM(tblUtgiftskategori_02[jul]) -> 875 | J20: =SUM(tblUtgiftskategori_02[aug]) -> 475 | K20: =SUM(tblUtgiftskategori_02[sep]) -> 400 | L20: =SUM(tblUtgiftskategori_02[okt]) -> 825 | M20: =SUM(tblUtgiftskategori_02[nov]) -> 575 | N20: =SUM(tblUtgiftskategori_02[dec]) -> 375 | O20: =SUM(tblUtgiftskategori_02[år]) -> 7,020 | P20: =SUM(tblUtgiftskategori_02[medel]) -> 585
B21: =LOWER(Budget!B21) -> hushåll | C21: =SUM(tblUtgiftskategori_01[jan]) -> 1,208 | D21: =SUM(tblUtgiftskategori_01[feb]) -> 1,208 | E21: =SUM(tblUtgiftskategori_01[mar]) -> 1,233 | F21: =SUM(tblUtgiftskategori_01[apr]) -> 1,208 | G21: =SUM(tblUtgiftskategori_01[maj]) -> 1,158 | H21: =SUM(tblUtgiftskategori_01[jun]) -> 1,183 | I21: =SUM(tblUtgiftskategori_01[jul]) -> 1,283 | J21: =SUM(tblUtgiftskategori_01[aug]) -> 1,333 | K21: =SUM(tblUtgiftskategori_01[sep]) -> 1,208 | L21: =SUM(tblUtgiftskategori_01[okt]) -> 1,158 | M21: =SUM(tblUtgiftskategori_01[nov]) -> 1,208 | N21: =SUM(tblUtgiftskategori_01[dec]) -> 1,208 | O21: =SUM(tblUtgiftskategori_01[år]) -> 14,596 | P21: =SUM(tblUtgiftskategori_01[medel]) -> 1,216
B26: Ackulmulerat kassaflöde | C26: =SUM(Budget!$C$8:C$8) -> -3,714 | D26: =SUM(Budget!$C$8:D$8) -> 76 | E26: =SUM(Budget!$C$8:E$8) -> -1,857 | F26: =SUM(Budget!$C$8:F$8) -> -3,670 | G26: =SUM(Budget!$C$8:G$8) -> -138 | H26: =SUM(Budget!$C$8:H$8) -> -3,731 | I26: =SUM(Budget!$C$8:I$8) -> -7,974 | J26: =SUM(Budget!$C$8:J$8) -> -6,827 | K26: =SUM(Budget!$C$8:K$8) -> -8,810 | L26: =SUM(Budget!$C$8:L$8) -> -10,753 | M26: =SUM(Budget!$C$8:M$8) -> -6,811 | N26: =SUM(Budget!$C$8:N$8) -> -7,769 | O26: =SUM(Budget!$C$8:O$8) -> -15,538
B28: Årets kassaflöde, plus | C28: =IF(Budget!C$8<0,NA(),IF(period+2<>COLUMN(Budget!C$8),NA(),Budget!C$8)) ->  | D28: =IF(Budget!D$8<0,NA(),IF(period+2<>COLUMN(Budget!D$8),NA(),Budget!D$8)) ->  | E28: =IF(Budget!E$8<0,NA(),IF(period+2<>COLUMN(Budget!E$8),NA(),Budget!E$8)) ->  | F28: =IF(Budget!F$8<0,NA(),IF(period+2<>COLUMN(Budget!F$8),NA(),Budget!F$8)) ->  | G28: =IF(Budget!G$8<0,NA(),IF(period+2<>COLUMN(Budget!G$8),NA(),Budget!G$8)) ->  | H28: =IF(Budget!H$8<0,NA(),IF(period+2<>COLUMN(Budget!H$8),NA(),Budget!H$8)) ->  | I28: =IF(Budget!I$8<0,NA(),IF(period+2<>COLUMN(Budget!I$8),NA(),Budget!I$8)) ->  | J28: =IF(Budget!J$8<0,NA(),IF(period+2<>COLUMN(Budget!J$8),NA(),Budget!J$8)) ->  | K28: =IF(Budget!K$8<0,NA(),IF(period+2<>COLUMN(Budget!K$8),NA(),Budget!K$8)) ->  | L28: =IF(Budget!L$8<0,NA(),IF(period+2<>COLUMN(Budget!L$8),NA(),Budget!L$8)) ->  | M28: =IF(Budget!M$8<0,NA(),IF(period+2<>COLUMN(Budget!M$8),NA(),Budget!M$8)) ->  | N28: =IF(Budget!N$8<0,NA(),IF(period+2<>COLUMN(Budget!N$8),NA(),Budget!N$8)) ->  | O28: =IF(Budget!O$8<0,NA(),IF(period+2<>COLUMN(Budget!O$8),NA(),Budget!O$8)) -> 
B29: Årets kassaflöde, minus | C29: =IF(Budget!C$8>=0,NA(),IF(period+2<>COLUMN(Budget!C$8),NA(),Budget!C$8)) ->  | D29: =IF(Budget!D$8>=0,NA(),IF(period+2<>COLUMN(Budget!D$8),NA(),Budget!D$8)) ->  | E29: =IF(Budget!E$8>=0,NA(),IF(period+2<>COLUMN(Budget!E$8),NA(),Budget!E$8)) -> -1,933 | F29: =IF(Budget!F$8>=0,NA(),IF(period+2<>COLUMN(Budget!F$8),NA(),Budget!F$8)) ->  | G29: =IF(Budget!G$8>=0,NA(),IF(period+2<>COLUMN(Budget!G$8),NA(),Budget!G$8)) ->  | H29: =IF(Budget!H$8>=0,NA(),IF(period+2<>COLUMN(Budget!H$8),NA(),Budget!H$8)) ->  | I29: =IF(Budget!I$8>=0,NA(),IF(period+2<>COLUMN(Budget!I$8),NA(),Budget!I$8)) ->  | J29: =IF(Budget!J$8>=0,NA(),IF(period+2<>COLUMN(Budget!J$8),NA(),Budget!J$8)) ->  | K29: =IF(Budget!K$8>=0,NA(),IF(period+2<>COLUMN(Budget!K$8),NA(),Budget!K$8)) ->  | L29: =IF(Budget!L$8>=0,NA(),IF(period+2<>COLUMN(Budget!L$8),NA(),Budget!L$8)) ->  | M29: =IF(Budget!M$8>=0,NA(),IF(period+2<>COLUMN(Budget!M$8),NA(),Budget!M$8)) ->  | N29: =IF(Budget!N$8>=0,NA(),IF(period+2<>COLUMN(Budget!N$8),NA(),Budget!N$8)) ->  | O29: =IF(Budget!O$8>=0,NA(),IF(period+2<>COLUMN(Budget!O$8),NA(),Budget!O$8)) -> 
B37: =LOWER(visa_lång_period) -> mars
B38: ="Inkomst i "&visa_lång_period -> Inkomst i mars | C38: =INDEX(Budget!$C$6:$P$6,,period) -> 4,000 kr
B39: ="Utgifter i " & visa_lång_period & ": " & TEXT(INDEX(Budget!$C$7:$P$7,,period),"# ##0 kr") -> Utgifter i mars: 5 933 kr | C39: =INDEX(Budget!$C$7:$P$7,,period) -> 5,933 kr
B40: ="Kassaflöde i" &visa_lång_period -> Kassaflöde imars | C40: =ABS(INDEX(Budget!$C$8:$P$8,,period)) -> 1,933 kr | D40: =REPT("-",INDEX(Budget!$C$8:$P$8,,period)<0) -> -
